fUST/lending_fUST_20250204
["ID","MTS","AMOUNT","RATE_DAILY","PERIOD"]
[351642802,1738682683081,5256.04586364,0.00015,2]
[351642821,1738682955017,427.0,0.00018,30]
[351642874,1738683037080,-1643.71114581,0.00015501,2]
[351642876,1738683037093,-1725.97366471,0.00015501,2]
[351642881,1738683037134,-3091.22230588,0.00015501,2]
[351642883,1738683037144,-1093.06801193,0.00016162,2]
[351642885,1738683037153,-1093.06801193,0.00016262,2]
[351642887,1738683037163,-278.24167026,0.00016361,2]
[351643117,1738683039446,-21.75832974,0.00016361,2]
[351643119,1738683039456,-1093.06801193,0.00016362,2]
[351643121,1738683039466,-97822.68148424,0.0001643,2]
[351643123,1738683039478,-44581.46548982,0.0001643,2]
[351643125,1738683039487,-430.72343949,0.00016438,2]
[351643127,1738683039497,-500.0,0.00016438,2]
[351643130,1738683039507,-260.12197243,0.00016438,2]
[351643132,1738683039521,-500.0,0.00016438,2]
[351643133,1738683039531,-500.0,0.00016438,2]
[351643135,1738683039540,-500.0,0.00016438,2]
[351643138,1738683039552,-500.0,0.00016438,2]
[351643140,1738683039562,-500.0,0.00016438,2]
[351643142,1738683039572,-500.0,0.00016438,2]
[351643144,1738683039583,-500.0,0.00016438,2]
[351643146,1738683039593,-500.0,0.00016438,2]
[351643148,1738683039604,-500.0,0.00016438,2]
[351643150,1738683039614,-500.0,0.00016438,2]
[351643152,1738683039625,-500.69347513,0.00016438,2]
[351643154,1738683039635,-500.0,0.00016438,2]
[351643156,1738683039645,-500.0,0.00016438,2]
[351643158,1738683039654,-1127.12,0.00016438,2]
[351643159,1738683039664,-1232.19,0.00016438,2]
[351643161,1738683039673,-1629.5,0.00016438,2]
[351643163,1738683039683,-500.0,0.00016438,2]
[351643165,1738683039693,-500.0,0.00016438,2]
[351643167,1738683039703,-500.0,0.00016438,2]
[351643169,1738683039713,-500.0,0.00016438,2]
[351643171,1738683039723,-500.0,0.00016438,2]
[351643173,1738683039733,-500.0,0.00016438,2]
[351643175,1738683039742,-677.23,0.00016438,2]
[351643177,1738683039751,-1294.44,0.00016438,2]
[351643179,1738683039761,-500.0,0.00016438,2]
[351643181,1738683039779,-500.0,0.00016438,2]
[351643184,1738683039790,-605.19151781,0.00016438,2]
[351643186,1738683039800,-500.0,0.00016438,2]
[351643188,1738683039810,-500.0,0.00016438,2]
[351643190,1738683039819,-538.68,0.00016438,2]
[351643192,1738683039830,-500.0,0.00016438,2]
[351643194,1738683039839,-500.0,0.00016438,2]
[351643195,1738683039849,-550.84,0.00016438,2]
[351643198,1738683039858,-500.0,0.00016438,2]
[351643200,1738683039871,-999.3,0.00016438,2]
[351643202,1738683039881,-2999.41,0.00016438,2]
[351643204,1738683039891,-500.0,0.00016438,2]
[351643205,1738683039901,-500.0,0.00016438,2]
[351643207,1738683039910,-500.0,0.00016438,2]
[351643210,1738683039920,-500.0,0.00016438,2]
[351643212,1738683039930,-500.0,0.00016438,2]
[351643214,1738683039939,-500.0,0.00016438,2]
[351643216,1738683039950,-533.12,0.00016438,2]
[351643218,1738683039959,-390.16312571,0.00016438,2]
[351643220,1738683039970,-500.0,0.00016438,2]
[351643222,1738683039979,-500.0,0.00016438,2]
[351643224,1738683039989,-500.0,0.00016438,2]
[351643226,1738683039999,-500.0,0.00016438,2]
[351643228,1738683040008,-500.0,0.00016438,2]
[351643229,1738683040022,-500.0,0.00016438,2]
[351643232,1738683040032,-1491.03,0.00016438,2]
[351643234,1738683040042,-500.0,0.00016438,2]
[351643237,1738683040052,-500.0,0.00016438,2]
[351643240,1738683040062,-500.0,0.00016438,2]
[351643242,1738683040072,-968.27,0.00016438,2]
[351643243,1738683040081,-500.0,0.00016438,2]
[351643245,1738683040091,-500.0,0.00016438,2]
[351643248,1738683040100,-500.0,0.00016438,2]
[351643249,1738683040110,-797.58,0.00016438,2]
[351643252,1738683040120,-553.89,0.00016438,2]
[351643253,1738683040130,-500.0,0.00016438,2]
[351643256,1738683040140,-500.0,0.00016438,2]
[351643258,1738683040149,-500.0,0.00016438,2]
[351643261,1738683040159,-500.0,0.00016438,2]
[351643262,1738683040168,-500.0,0.00016438,2]
[351643265,1738683040178,-500.0,0.00016438,2]
[351643268,1738683040187,-717.9,0.00016438,2]
[351643270,1738683040197,-500.0,0.00016438,2]
[351643273,1738683040207,-500.0,0.00016438,2]
[351643274,1738683040216,-500.0,0.00016438,2]
[351643276,1738683040226,-500.0,0.00016438,2]
[351643278,1738683040236,-500.0,0.00016438,2]
[351643280,1738683040246,-1163.12,0.00016438,2]
[351643283,1738683040260,-500.0,0.00016438,2]
[351643285,1738683040275,-1020.51,0.00016438,2]
[351643287,1738683040285,-500.0,0.00016438,2]
[351643289,1738683040294,-1015.42,0.00016438,2]
[351643291,1738683040305,-500.0,0.00016438,2]
[351643293,1738683040314,-1531.56,0.00016438,2]
[351643295,1738683040324,-3029.23,0.00016438,2]
[351643297,1738683040334,-500.0,0.00016438,2]
[351643299,1738683040344,-1477.65,0.00016438,2]
[351643301,1738683040354,-500.0,0.00016438,2]
[351643303,1738683040364,-500.0,0.00016438,2]
[351643305,1738683040375,-980.49,0.00016438,2]
[351643307,1738683040385,-16318.68,0.00016438,2]
[351643309,1738683040395,-500.0,0.00016438,2]
[351643311,1738683040406,-1200.86,0.00016438,2]
[351643313,1738683040415,-500.0,0.00016438,2]
[351643315,1738683040425,-500.0,0.00016438,2]
[351643317,1738683040435,-500.0,0.00016438,2]
[351643319,1738683040444,-1110.71,0.00016438,2]
[351643321,1738683040454,-500.0,0.00016438,2]
[351643323,1738683040464,-3843.13,0.00016438,2]
[351643325,1738683040474,-356.163136,0.00016438,2]
[351643327,1738683040484,-500.0,0.00016438,2]
[351643329,1738683040494,-947.12,0.00016438,2]
[351643331,1738683040504,-500.0,0.00016438,2]
[351643333,1738683040517,-953.78,0.00016438,2]
[351643334,1738683040526,-500.0,0.00016438,2]
[351643335,1738683040536,-1448.74,0.00016438,2]
[351643336,1738683040545,-500.0,0.00016438,2]
[351643337,1738683040555,-500.0,0.00016438,2]
[351643338,1738683040564,-500.0,0.00016438,2]
[351643339,1738683040573,-500.0,0.00016438,2]
[351643340,1738683040583,-540.94210851,0.00016438,2]
[351643341,1738683040593,-697.17,0.00016438,2]
[351643342,1738683040602,-500.0,0.00016438,2]
[351643343,1738683040611,-500.0,0.00016438,2]
[351643344,1738683040621,-500.0,0.00016438,2]
[351643345,1738683040629,-500.0,0.00016438,2]
[351643346,1738683040639,-1429.26,0.00016438,2]
[351643347,1738683040649,-500.0,0.00016438,2]
[351643348,1738683040658,-500.0,0.00016438,2]
[351643349,1738683040667,-1083.74,0.00016438,2]
[351643350,1738683040676,-500.0,0.00016438,2]
[351643351,1738683040686,-2224.89,0.00016438,2]
[351643352,1738683040695,-6350.82,0.00016438,2]
[351643353,1738683040704,-509.42,0.00016438,2]
[351643354,1738683040713,-1386.03,0.00016438,2]
[351643355,1738683040723,-1081.14,0.00016438,2]
[351643357,1738683040732,-500.0,0.00016438,2]
[351643359,1738683040742,-500.0,0.00016438,2]
[351643361,1738683040752,-500.0,0.00016438,2]
[351643363,1738683040762,-3014.71,0.00016438,2]
[351643365,1738683040774,-500.0,0.00016438,2]
[351643367,1738683040790,-3551.06,0.00016438,2]
[351643369,1738683040800,-339.91960988,0.00016438,2]
[351643371,1738683040810,-2703.72,0.00016438,2]
[351643373,1738683040819,-500.0,0.00016438,2]
[351643375,1738683040831,-9905.86,0.00016438,2]
[351643377,1738683040840,-500.0,0.00016438,2]
[351643379,1738683040850,-397.16419567,0.00016438,2]
[351643381,1738683040861,-1950.16,0.00016438,2]
[351643383,1738683040871,-500.0,0.00016438,2]
[351643385,1738683040880,-1281.3,0.00016438,2]
[351643387,1738683040890,-1507.98,0.00016438,2]
[351643389,1738683040900,-1036.56,0.00016438,2]
[351643391,1738683040910,-1414.72,0.00016438,2]
[351643393,1738683040920,-500.0,0.00016438,2]
[351643395,1738683040930,-2485.55,0.00016438,2]
[351643397,1738683040939,-500.0,0.00016438,2]
[351643399,1738683040950,-673.62,0.00016438,2]
[351643418,1738683041132,-606.05,0.00016438,2]
[351643420,1738683041143,-927.41,0.00016438,2]
[351643422,1738683041155,-4907.09,0.00016438,2]
[351643425,1738683041165,-1039.9,0.00016438,2]
[351643427,1738683041176,-42973.95,0.00016438,2]
[351643429,1738683041186,-500.0,0.00016438,2]
[351643431,1738683041195,-187.09801408,0.00016438,2]
[351643433,1738683041205,-500.0,0.00016438,2]
[351643435,1738683041215,-1397.81,0.00016438,2]
[351643437,1738683041225,-500.0,0.00016438,2]
[351643439,1738683041234,-500.0,0.00016438,2]
[351643441,1738683041243,-1025.245,0.0001644,2]
[351643443,1738683041253,-1093.06801193,0.00016462,2]
[351643445,1738683041263,-251.54762207,0.00016473,2]
[351643447,1738683041280,-500.0,0.00016473,2]
[351643449,1738683041291,-1974.0,0.0001649,2]
[351643451,1738683041301,-537.0,0.0001649,2]
[351643453,1738683041311,-2298.0,0.0001649,2]
[351643455,1738683041320,-7438.69753278,0.000165,2]
[351643457,1738683041330,-1093.06801193,0.00016562,2]
[351643459,1738683041341,-500.0,0.00016575,2]
[351643460,1738683041352,-500.0,0.00016575,2]
[351643463,1738683041362,-500.0,0.00016575,2]
[351643465,1738683041372,-500.0,0.00016575,2]
[351643467,1738683041383,-500.0,0.00016575,2]
[351643468,1738683041393,-500.0,0.00016575,2]
[351643470,1738683041402,-500.0,0.00016575,2]
[351643472,1738683041411,-500.0,0.00016575,2]
[351643474,1738683041421,-500.0,0.00016575,2]
[351643476,1738683041430,-500.0,0.00016575,2]
[351643478,1738683041441,-500.0,0.00016575,2]
[351643480,1738683041450,-1127.12,0.00016575,2]
[351643482,1738683041461,-1232.19,0.00016575,2]
[351643484,1738683041471,-1629.5,0.00016575,2]
[351643486,1738683041481,-500.0,0.00016575,2]
[351643488,1738683041491,-500.0,0.00016575,2]
[351643490,1738683041501,-500.0,0.00016575,2]
[351643492,1738683041511,-500.0,0.00016575,2]
[351643494,1738683041529,-500.0,0.00016575,2]
[351643496,1738683041539,-500.0,0.00016575,2]
[351643498,1738683041550,-677.23,0.00016575,2]
[351643500,1738683041561,-1294.44,0.00016575,2]
[351643502,1738683041573,-500.0,0.00016575,2]
[351643504,1738683041583,-500.0,0.00016575,2]
[351643506,1738683041594,-500.0,0.00016575,2]
[351643508,1738683041604,-500.0,0.00016575,2]
[351643510,1738683041615,-538.68,0.00016575,2]
[351643512,1738683041625,-500.0,0.00016575,2]
[351643514,1738683041635,-550.84,0.00016575,2]
[351643516,1738683041646,-500.0,0.00016575,2]
[351643518,1738683041657,-999.3,0.00016575,2]
[351643520,1738683041667,-2999.41,0.00016575,2]
[351643522,1738683041677,-500.0,0.00016575,2]
[351643524,1738683041688,-500.0,0.00016575,2]
[351643526,1738683041698,-500.0,0.00016575,2]
[351643529,1738683041709,-500.0,0.00016575,2]
[351643531,1738683041719,-533.12,0.00016575,2]
[351643533,1738683041729,-500.0,0.00016575,2]
[351643535,1738683041739,-500.0,0.00016575,2]
[351643537,1738683041749,-500.0,0.00016575,2]
[351643539,1738683041758,-500.0,0.00016575,2]
[351643541,1738683041773,-500.0,0.00016575,2]
[351643543,1738683041787,-500.0,0.00016575,2]
[351643545,1738683041802,-1491.03,0.00016575,2]
[351643547,1738683041811,-500.0,0.00016575,2]
[351643549,1738683041822,-500.0,0.00016575,2]
[351643551,1738683041832,-968.27,0.00016575,2]
[351643553,1738683041842,-500.0,0.00016575,2]
[351643555,1738683041852,-500.0,0.00016575,2]
[351643557,1738683041863,-500.0,0.00016575,2]
[351643559,1738683041873,-797.58,0.00016575,2]
[351643561,1738683041884,-553.89,0.00016575,2]
[351643563,1738683041894,-500.0,0.00016575,2]
[351643565,1738683041904,-500.0,0.00016575,2]
[351643567,1738683041914,-500.0,0.00016575,2]
[351643569,1738683041924,-500.0,0.00016575,2]
[351643571,1738683041934,-515.88896787,0.00016575,2]
[351643573,1738683041944,-500.0,0.00016575,2]
[351643575,1738683041954,-717.9,0.00016575,2]
[351643577,1738683041964,-500.0,0.00016575,2]
[351643579,1738683041975,-500.0,0.00016575,2]
[351643581,1738683041985,-455.42794334,0.00016575,2]
[351643583,1738683041995,-500.0,0.00016575,2]
[351643585,1738683042005,-500.0,0.00016575,2]
[351643587,1738683042018,-1163.12,0.00016575,2]
[351643589,1738683042028,-500.0,0.00016575,2]
[351643591,1738683042039,-1020.51,0.00016575,2]
[351643593,1738683042048,-500.0,0.00016575,2]
[351643595,1738683042057,-1015.42,0.00016575,2]
[351643597,1738683042067,-500.0,0.00016575,2]
[351643599,1738683042076,-1531.56,0.00016575,2]
[351643601,1738683042086,-3029.23,0.00016575,2]
[351643603,1738683042096,-513.62360964,0.00016575,2]
[351643605,1738683042105,-1477.65,0.00016575,2]
[351643607,1738683042115,-295.91829999,0.00016575,2]
[351643609,1738683042124,-500.0,0.00016575,2]
[351643611,1738683042133,-980.49,0.00016575,2]
[351643613,1738683042143,-16318.68,0.00016575,2]
[351643615,1738683042152,-500.0,0.00016575,2]
[351643617,1738683042162,-1200.86,0.00016575,2]
[351643619,1738683042171,-500.0,0.00016575,2]
[351643621,1738683042180,-500.0,0.00016575,2]
[351643623,1738683042190,-500.0,0.00016575,2]
[351643624,1738683042201,-1110.71,0.00016575,2]
[351643626,1738683042210,-500.0,0.00016575,2]
[351643628,1738683042220,-3843.13,0.00016575,2]
[351643630,1738683042229,-500.0,0.00016575,2]
[351643632,1738683042239,-947.12,0.00016575,2]
[351643634,1738683042249,-500.0,0.00016575,2]
[351643636,1738683042258,-953.78,0.00016575,2]
[351643638,1738683042272,-582.16,0.00016575,2]
[351643640,1738683042281,-500.0,0.00016575,2]
[351643642,1738683042290,-500.0,0.00016575,2]
[351643644,1738683042300,-500.0,0.00016575,2]
[351643646,1738683042309,-500.0,0.00016575,2]
[351643648,1738683042318,-697.17,0.00016575,2]
[351643650,1738683042327,-500.0,0.00016575,2]
[351643652,1738683042337,-500.0,0.00016575,2]
[351643654,1738683042346,-500.0,0.00016575,2]
[351643656,1738683042360,-500.0,0.00016575,2]
[351643659,1738683042374,-1429.26,0.00016575,2]
[351643661,1738683042389,-500.0,0.00016575,2]
[351643664,1738683042404,-454.25895665,0.00016575,2]
[351643666,1738683042416,-1083.74,0.00016575,2]
[351643668,1738683042427,-2224.89,0.00016575,2]
[351643670,1738683042441,-6350.82,0.00016575,2]
[351643673,1738683042452,-509.42,0.00016575,2]
[351643675,1738683042465,-1386.03,0.00016575,2]
[351643677,1738683042479,-1081.14,0.00016575,2]
[351643680,1738683042493,-500.0,0.00016575,2]
[351643682,1738683042506,-500.0,0.00016575,2]
[351643684,1738683042522,-500.0,0.00016575,2]
[351643686,1738683042536,-3014.71,0.00016575,2]
[351643689,1738683042549,-500.0,0.00016575,2]
[351643691,1738683042561,-3551.06,0.00016575,2]
[351643693,1738683042574,-2703.72,0.00016575,2]
[351643695,1738683042588,-9905.86,0.00016575,2]
[351643698,1738683042599,-500.0,0.00016575,2]
[351643700,1738683042613,-1950.16,0.00016575,2]
[351643702,1738683042626,-500.0,0.00016575,2]
[351643705,1738683042638,-1281.3,0.00016575,2]
[351643707,1738683042650,-1507.98,0.00016575,2]
[351643709,1738683042661,-1036.56,0.00016575,2]
[351643711,1738683042672,-1414.72,0.00016575,2]
[351643713,1738683042683,-500.0,0.00016575,2]
[351643715,1738683042696,-2485.55,0.00016575,2]
[351643718,1738683042709,-500.0,0.00016575,2]
[351643720,1738683042722,-673.62,0.00016575,2]
[351643722,1738683042734,-606.05,0.00016575,2]
[351643725,1738683042747,-927.41,0.00016575,2]
[351643727,1738683042759,-4907.09,0.00016575,2]
[351643729,1738683042777,-1039.9,0.00016575,2]
[351643732,1738683042793,-42973.95,0.00016575,2]
[351643734,1738683042804,-500.0,0.00016575,2]
[351643736,1738683042815,-500.0,0.00016575,2]
[351643738,1738683042827,-1397.81,0.00016575,2]
[351643740,1738683042838,-624.27618902,0.00016575,2]
[351643743,1738683042850,-153.0,0.00016584,2]
[351643745,1738683042864,-1093.06801193,0.00016662,2]
[351643747,1738683042878,-500.0,0.00016663,2]
[351643749,1738683042891,-1857.46,0.000167,2]
[351643752,1738683042902,-500.0,0.00016712,2]
[351643754,1738683042912,-500.0,0.00016712,2]
[351643756,1738683042923,-500.0,0.00016712,2]
[351643758,1738683042935,-500.0,0.00016712,2]
[351643760,1738683042947,-500.0,0.00016712,2]
[351643762,1738683042959,-500.0,0.00016712,2]
[351643764,1738683042969,-500.0,0.00016712,2]
[351643766,1738683042980,-500.0,0.00016712,2]
[351643768,1738683042991,-500.0,0.00016712,2]
[351643771,1738683043002,-500.0,0.00016712,2]
[351643773,1738683043013,-500.0,0.00016712,2]
[351643775,1738683043029,-1127.12,0.00016712,2]
[351643777,1738683043043,-1232.19,0.00016712,2]
[351643779,1738683043056,-1629.5,0.00016712,2]
[351643782,1738683043069,-500.0,0.00016712,2]
[351643784,1738683043081,-500.0,0.00016712,2]
[351643786,1738683043093,-414.81826161,0.00016712,2]
[351643788,1738683043105,-500.0,0.00016712,2]
[351643792,1738683043118,-500.0,0.00016712,2]
[351643797,1738683043129,-500.0,0.00016712,2]
[351643802,1738683043141,-677.23,0.00016712,2]
[351643805,1738683043154,-1294.44,0.00016712,2]
[351643808,1738683043165,-500.0,0.00016712,2]
[351643812,1738683043177,-500.0,0.00016712,2]
[351643816,1738683043188,-500.0,0.00016712,2]
[351643819,1738683043200,-500.0,0.00016712,2]
[351643822,1738683043212,-538.68,0.00016712,2]
[351643825,1738683043223,-500.0,0.00016712,2]
[351643828,1738683043234,-550.84,0.00016712,2]
[351643832,1738683043245,-500.0,0.00016712,2]
[351643836,1738683043257,-999.3,0.00016712,2]
[351643840,1738683043271,-2999.41,0.00016712,2]
[351643845,1738683043284,-500.0,0.00016712,2]
[351643850,1738683043295,-500.0,0.00016712,2]
[351643854,1738683043305,-500.0,0.00016712,2]
[351643858,1738683043317,-500.0,0.00016712,2]
[351643863,1738683043329,-533.12,0.00016712,2]
[351643867,1738683043340,-500.0,0.00016712,2]
[351643870,1738683043352,-500.0,0.00016712,2]
[351643873,1738683043363,-500.0,0.00016712,2]
[351643876,1738683043374,-500.0,0.00016712,2]
[351643879,1738683043386,-500.0,0.00016712,2]
[351643883,1738683043397,-500.0,0.00016712,2]
[351643885,1738683043408,-1491.03,0.00016712,2]
[351643888,1738683043420,-500.0,0.00016712,2]
[351643890,1738683043431,-500.0,0.00016712,2]
[351643893,1738683043443,-968.27,0.00016712,2]
[351643895,1738683043455,-500.0,0.00016712,2]
[351643898,1738683043467,-500.0,0.00016712,2]
[351643900,1738683043478,-597.71742064,0.00016712,2]
[351643902,1738683043490,-797.58,0.00016712,2]
[351643904,1738683043501,-553.89,0.00016712,2]
[351643906,1738683043513,-500.0,0.00016712,2]
[351643908,1738683043528,-500.0,0.00016712,2]
[351643911,1738683043540,-500.0,0.00016712,2]
[351643913,1738683043552,-500.0,0.00016712,2]
[351643915,1738683043563,-500.0,0.00016712,2]
[351643917,1738683043574,-717.9,0.00016712,2]
[351643919,1738683043585,-636.1751788,0.00016712,2]
[351643921,1738683043598,-500.0,0.00016712,2]
[351643924,1738683043609,-270.75072042,0.00016712,2]
[351643926,1738683043620,-500.0,0.00016712,2]
[351643928,1738683043631,-1163.12,0.00016712,2]
[351643930,1738683043642,-500.0,0.00016712,2]
[351643932,1738683043653,-1020.51,0.00016712,2]
[351643934,1738683043664,-500.0,0.00016712,2]
[351643937,1738683043675,-1015.42,0.00016712,2]
[351643939,1738683043686,-500.0,0.00016712,2]
[351643941,1738683043698,-1531.56,0.00016712,2]
[351643943,1738683043709,-3029.23,0.00016712,2]
[351643945,1738683043721,-1477.65,0.00016712,2]
[351643948,1738683043733,-500.0,0.00016712,2]
[351643950,1738683043744,-980.49,0.00016712,2]
[351643952,1738683043756,-16318.68,0.00016712,2]
[351643954,1738683043770,-500.0,0.00016712,2]
[351643956,1738683043781,-1200.86,0.00016712,2]
[351643973,1738683043936,-500.0,0.00016712,2]
[351643976,1738683043954,-500.0,0.00016712,2]
[351643978,1738683043964,-264.12733185,0.00016712,2]
[351643980,1738683043974,-1110.71,0.00016712,2]
[351643982,1738683043984,-500.0,0.00016712,2]
[351643984,1738683043994,-3843.13,0.00016712,2]
[351643986,1738683044004,-500.0,0.00016712,2]
[351643988,1738683044013,-947.12,0.00016712,2]
[351643990,1738683044026,-953.78,0.00016712,2]
[351643992,1738683044035,-1448.74,0.00016712,2]
[351643994,1738683044044,-500.0,0.00016712,2]
[351643997,1738683044054,-500.0,0.00016712,2]
[351643998,1738683044064,-500.0,0.00016712,2]
[351644000,1738683044073,-500.0,0.00016712,2]
[351644003,1738683044084,-697.17,0.00016712,2]
[351644005,1738683044093,-417.57612933,0.00016712,2]
[351644007,1738683044102,-500.0,0.00016712,2]
[351644008,1738683044112,-520.89077666,0.00016712,2]
[351644010,1738683044122,-500.0,0.00016712,2]
[351644012,1738683044131,-1429.26,0.00016712,2]
[351644014,1738683044141,-500.0,0.00016712,2]
[351644017,1738683044152,-1083.74,0.00016712,2]
[351644019,1738683044162,-2224.89,0.00016712,2]
[351644021,1738683044172,-6350.82,0.00016712,2]
[351644023,1738683044182,-509.42,0.00016712,2]
[351644025,1738683044192,-1386.03,0.00016712,2]
[351644027,1738683044202,-1081.14,0.00016712,2]
[351644029,1738683044211,-500.0,0.00016712,2]
[351644031,1738683044221,-500.0,0.00016712,2]
[351644033,1738683044230,-500.0,0.00016712,2]
[351644035,1738683044240,-3014.71,0.00016712,2]
[351644037,1738683044249,-500.0,0.00016712,2]
[351644039,1738683044259,-3551.06,0.00016712,2]
[351644041,1738683044271,-2703.72,0.00016712,2]
[351644043,1738683044281,-9905.86,0.00016712,2]
[351644045,1738683044290,-500.0,0.00016712,2]
[351644047,1738683044300,-1950.16,0.00016712,2]
[351644049,1738683044310,-500.0,0.00016712,2]
[351644051,1738683044319,-1281.3,0.00016712,2]
[351644053,1738683044329,-1507.98,0.00016712,2]
[351644055,1738683044338,-1036.56,0.00016712,2]
[351644057,1738683044347,-1414.72,0.00016712,2]
[351644059,1738683044357,-500.0,0.00016712,2]
[351644061,1738683044366,-2485.55,0.00016712,2]
[351644063,1738683044375,-500.0,0.00016712,2]
[351644065,1738683044384,-673.62,0.00016712,2]
[351644067,1738683044393,-606.05,0.00016712,2]
[351644069,1738683044403,-927.41,0.00016712,2]
[351644071,1738683044414,-4907.09,0.00016712,2]
[351644073,1738683044424,-1039.9,0.00016712,2]
[351644076,1738683044434,-42973.95,0.00016712,2]
[351644077,1738683044443,-500.0,0.00016712,2]
[351644080,1738683044452,-500.0,0.00016712,2]
[351644082,1738683044461,-1397.81,0.00016712,2]
[351644084,1738683044471,-13258.95722438,0.0001672,2]
[351644086,1738683044480,-1093.06801193,0.00016762,2]
[351644088,1738683044490,-599.0,0.0001681,2]
[351644090,1738683044499,-718.2177546,0.00016829,2]
[351644092,1738683044509,-500.0,0.00016848,2]
[351644094,1738683044522,-500.0,0.00016848,2]
[351644096,1738683044531,-500.0,0.00016848,2]
[351644098,1738683044541,-195.83053833,0.00016848,2]
[351644100,1738683044550,-500.0,0.00016849,2]
[351644102,1738683044559,-500.0,0.00016849,2]
[351644103,1738683044568,-500.0,0.00016849,2]
[351644106,1738683044578,-500.0,0.00016849,2]
[351644108,1738683044587,-500.0,0.00016849,2]
[351644110,1738683044597,-500.0,0.00016849,2]
[351644112,1738683044606,-500.0,0.00016849,2]
[351644114,1738683044616,-316.32770504,0.00016849,2]
[351644116,1738683044626,-500.0,0.00016849,2]
[351644118,1738683044635,-500.0,0.00016849,2]
[351644120,1738683044644,-500.0,0.00016849,2]
[351644122,1738683044653,-1127.12,0.00016849,2]
[351644124,1738683044662,-1232.19,0.00016849,2]
[351644126,1738683044672,-1629.5,0.00016849,2]
[351644128,1738683044681,-500.0,0.00016849,2]
[351644130,1738683044691,-500.0,0.00016849,2]
[351644132,1738683044700,-500.0,0.00016849,2]
[351644134,1738683044711,-389.29435817,0.00016849,2]
[351644136,1738683044720,-677.23,0.00016849,2]
[351644138,1738683044730,-1294.44,0.00016849,2]
[351644140,1738683044739,-500.0,0.00016849,2]
[351644142,1738683044748,-500.0,0.00016849,2]
[351644144,1738683044758,-500.0,0.00016849,2]
[351644146,1738683044769,-500.0,0.00016849,2]
[351644148,1738683044779,-538.68,0.00016849,2]
[351644150,1738683044788,-500.0,0.00016849,2]
[351644152,1738683044801,-550.84,0.00016849,2]
[351644154,1738683044810,-500.0,0.00016849,2]
[351644156,1738683044819,-999.3,0.00016849,2]
[351644158,1738683044829,-2999.41,0.00016849,2]
[351644160,1738683044839,-500.0,0.00016849,2]
[351644162,1738683044848,-500.0,0.00016849,2]
[351644164,1738683044857,-500.0,0.00016849,2]
[351644166,1738683044866,-500.0,0.00016849,2]
[351644168,1738683044879,-533.12,0.00016849,2]
[351644170,1738683044888,-500.0,0.00016849,2]
[351644172,1738683044898,-500.0,0.00016849,2]
[351644174,1738683044908,-500.0,0.00016849,2]
[351644176,1738683044917,-500.0,0.00016849,2]
[351644178,1738683044926,-500.0,0.00016849,2]
[351644180,1738683044936,-555.91465726,0.00016849,2]
[351644182,1738683044945,-1491.03,0.00016849,2]
[351644184,1738683044954,-500.0,0.00016849,2]